bitfinex/quotes_ETHUSD_20260225
["timestamp","ask_amount","ask_price","bid_price","bid_amount"]
[1772057382905,4.72018889,2112.2,2111.4,6.48719078]
[1772057383094,6.14551401,2111.9,2111.0,7.67143476]
[1772057384409,1.18382422,2111.8,2111.0,7.67143476]
[1772057384609,1.18371212,2112.0,2111.2,6.48719078]
[1772057385317,0.002,2112.2,2111.4,30.0]
[1772057385523,0.002,2112.2,2111.5,6.48719078]
[1772057385986,0.002,2112.2,2111.7,6.48719078]
[1772057386411,0.002,2112.4,2111.6,6.48719078]
[1772057386725,0.002,2112.7,2111.9,6.48719078]
[1772057387014,0.002,2112.7,2112.2,6.48719078]
[1772057389021,0.002,2112.7,2112.4,6.48719078]
[1772057390116,0.002,2113.2,2112.7,6.48719078]
[1772057390292,0.002,2113.5,2113.0,6.48719078]
[1772057390889,0.002,2113.5,2113.2,6.48719078]
[1772057392817,0.002,2113.8,2113.2,6.48719078]
[1772057393317,0.002,2113.8,2113.3,6.48719078]
[1772057395512,0.002,2113.8,2113.3,7.67015983]
[1772057396729,0.002,2113.8,2113.3,6.48719078]
[1772057397028,0.002,2113.8,2113.3,7.67017025]
[1772057398929,0.002,2113.8,2113.3,6.48719078]
[1772057399222,0.002,2113.8,2113.3,7.67017164]
[1772057400400,0.002,2113.8,2113.3,6.48719078]
[1772057400926,0.002,2113.8,2113.3,7.67017015]
[1772057401329,0.002,2114.1,2113.4,6.28871697]
[1772057402124,0.002,2114.1,2113.5,30.0]
[1772057402500,0.002,2114.1,2113.6,3.13788891]
[1772057402831,0.002,2114.4,2114.3,6.28871697]
[1772057403041,7.63526731,2115.1,2114.3,6.28871697]
[1772057404231,0.002,2114.6,2114.3,6.28871697]
[1772057404604,4.72779918,2115.2,2114.3,6.28871697]
[1772057404605,1.18194319,2115.2,2114.3,6.28871697]
[1772057404798,6.45324676,2115.1,2114.4,1.18236852]
[1772057405003,1.18194319,2115.2,2113.8,6.28871697]
[1772057405004,6.45324676,2114.7,2113.8,6.28871697]
[1772057406438,6.45324676,2114.5,2113.8,6.28871697]
[1772057406841,7.63561528,2114.4,2113.5,6.28871697]
[1772057407019,7.63561528,2114.4,2113.4,3.06192269]
[1772057407334,7.63561528,2114.4,2113.4,9.35063966]
[1772057407526,1.18235494,2114.5,2113.5,6.28871697]
[1772057408508,7.6356017,2114.5,2113.5,6.28871697]
[1772057409205,7.6356017,2114.5,2113.7,6.28871697]
[1772057409401,7.6356017,2114.5,2113.7,6.27421697]
[1772057409617,6.45324676,2115.1,2114.1,6.28871697]
[1772057410064,6.45324676,2115.4,2114.2,6.28871697]
[1772057411337,7.63511221,2115.3,2114.4,6.28871697]
[1772057411739,1.18185292,2115.4,2114.6,6.28871697]
[1772057411907,1.18185292,2115.4,2114.3,1.18242444]
[1772057411908,6.45324676,2115.2,2114.3,7.47114141]
[1772057413107,6.45324676,2114.8,2114.2,1.876]
[1772057413926,1.18208898,2114.9,2114.2,3.05846125]
[1772057414130,1.18208898,2114.9,2114.2,9.34717822]
[1772057414928,1.18208898,2114.9,2114.2,8.16471697]
[1772057415129,7.63533574,2114.9,2114.2,1.876]
[1772057416024,7.63533574,2114.9,2113.8,0.001]
[1772057416025,6.45324676,2114.6,2113.8,0.001]
[1772057416223,6.45324676,2114.6,2113.8,1.18369527]
[1772057416224,6.45524676,2114.6,2113.8,1.18369527]
[1772057416424,6.45524676,2114.6,2113.8,1.18369716]
[1772057417127,6.45524676,2114.6,2113.8,7.47241413]
[1772057419040,1.1823126,2114.5,2113.8,7.47241413]
[1772057419848,1.1823126,2114.5,2113.8,6.28971697]
[1772057420719,7.63555936,2114.5,2113.8,6.28971697]
[1772057420936,7.63555936,2114.5,2113.8,7.47241522]
[1772057422454,6.45324676,2114.1,2113.5,0.001]
[1772057423149,7.635839,2114.0,2113.5,0.001]
[1772057424243,6.45324676,2114.0,2113.5,0.001]
[1772057424826,6.96841691,2114.4,2113.5,6.28971697]
[1772057424827,6.45324676,2114.4,2113.5,6.28971697]
[1772057425067,1.1823126,2114.5,2113.5,6.28971697]
[1772057425234,1.1823126,2114.5,2113.7,6.28871697]
[1772057428154,1.1823126,2114.5,2113.8,1.18270413]
[1772057428323,11.18447125,2114.6,2113.8,1.18270413]
[1772057428324,0.002,2114.6,2113.8,7.52513425]
[1772057428526,0.002,2114.6,2113.9,6.34243012]
[1772057429450,0.002,2114.4,2113.9,6.34243012]
[1772057430633,0.002,2114.4,2114.1,6.34243012]
[1772057430833,0.002,2114.8,2114.4,6.08544883]
[1772057431556,0.002,2114.8,2114.2,1.877]
[1772057431736,0.002,2114.8,2114.3,6.08544883]
[1772057432623,0.002,2114.8,2114.5,6.08544883]
[1772057434338,0.002,2114.8,2114.4,1.18236852]
[1772057435260,0.002,2114.8,2114.4,7.26781735]
[1772057435561,0.002,2115.1,2114.6,6.08544883]
[1772057437360,7.3658793,2115.6,2114.8,6.08544883]
[1772057437667,7.36573192,2115.9,2114.8,6.08544883]
[1772057438038,7.36573192,2115.9,2115.0,6.08544883]
[1772057438858,6.96352505,2116.2,2115.0,6.08544883]
[1772057438859,7.36562444,2116.1,2115.1,6.08544883]
[1772057439479,4.72502404,2116.4,2115.7,6.08544883]
[1772057439651,6.18416082,2116.8,2115.7,6.08544883]
[1772057439652,6.18416082,2116.6,2115.7,6.08544883]
[1772057439851,6.18416082,2116.9,2115.9,6.08544883]
[1772057440042,7.3651355,2116.9,2116.0,30.0]
[1772057440244,1.18088908,2117.1,2116.2,6.08544883]
[1772057440644,1.1808383,2117.2,2116.4,6.08544883]
[1772057441179,1.1806933,2117.4,2116.5,6.08544883]
[1772057441346,1.1806933,2117.4,2116.7,6.08544883]
[1772057441549,0.002,2116.8,2116.7,6.08544883]
[1772057441745,1.1806933,2117.4,2116.7,6.08544883]
[1772057441952,0.002,2117.0,2116.5,1.18115208]
[1772057442159,6.18416082,2117.8,2116.8,6.08544883]
[1772057442361,1.18044131,2117.9,2117.1,6.08544883]
[1772057442774,2.23804795,2118.3,2117.3,6.08544883]
[1772057442775,1.18024737,2118.3,2117.3,6.08544883]
[1772057442973,7.36440819,2118.3,2117.3,6.08544883]
[1772057443353,7.36440819,2118.3,2117.4,1.1806933]
[1772057443547,7.36418717,2118.6,2117.9,2.23804795]
[1772057443897,7.36418717,2118.6,2117.5,1.884]
[1772057443898,6.18416082,2118.3,2117.5,1.884]
[1772057444579,6.18416082,2118.2,2117.1,7.26627373]
[1772057444782,6.18416082,2118.2,2117.2,2.995]
[1772057444961,8.42220877,2118.0,2117.1,7.26630526]
[1772057445146,6.18416082,2117.9,2116.8,7.96844883]
[1772057445352,6.18416082,2117.9,2116.9,6.08544883]
[1772057445651,6.18416082,2117.9,2116.8,3.06402714]
[1772057445652,7.36463111,2117.8,2116.8,3.06402714]
[1772057445849,7.36463111,2117.8,2116.8,1.883]
[1772057446090,6.18416082,2117.3,2116.2,6.08544883]
[1772057446551,6.18416082,2116.9,2115.9,7.96744883]
[1772057446744,6.18416082,2116.9,2115.9,9.14897015]
[1772057446951,6.18416082,2116.9,2115.9,3.06352132]
[1772057447281,6.18416082,2116.9,2115.9,3.0635303]
[1772057447466,6.18416082,2116.6,2115.9,1.882]
[1772057447663,7.36535618,2116.5,2115.4,7.2672354]
[1772057448279,7.36535618,2116.5,2115.5,30.0]
[1772057448456,7.36535618,2116.5,2115.4,1.18178657]
[1772057448457,7.36535618,2116.5,2115.6,6.08544883]
[1772057448781,7.36535618,2116.5,2115.4,1.18178657]
[1772057448782,6.18416082,2116.4,2115.3,7.26726899]
[1772057448980,3.41924331,2116.5,2115.2,1.881]
[1772057448981,6.18416082,2116.1,2115.2,1.881]
[1772057449185,7.36535618,2116.5,2115.3,6.08544883]
[1772057449381,7.36535618,2116.5,2115.4,6.08544883]
[1772057449551,7.36535618,2116.5,2115.5,1.18175372]
[1772057449884,6.96221237,2116.8,2115.7,6.08544883]
[1772057449885,1.18108376,2116.7,2115.7,6.08544883]
[1772057451260,1.18099857,2116.9,2115.9,6.08544883]
[1772057451898,7.36502143,2117.1,2116.1,6.08544883]
[1772057452260,1.18086061,2117.1,2116.1,6.08544883]
[1772057452460,1.18086061,2117.1,2116.0,1.18147448]
[1772057452461,7.36502143,2117.1,2116.0,1.18147448]
[1772057453306,7.36502143,2117.1,2115.9,7.26694206]
[1772057453758,7.36502143,2117.1,2115.8,1.18153117]
[1772057455131,6.18616082,2116.8,2115.6,7.2681023]
[1772057455287,6.18616082,2116.8,2115.6,0.001]
[1772057455660,1.18108376,2116.7,2115.6,7.26814471]
[1772057455884,1.18108376,2116.7,2115.6,1.18269377]
[1772057455885,7.33412086,2116.7,2115.6,1.18269377]
[1772057457671,7.33412086,2116.7,2115.6,7.25843946]
[1772057458084,7.33412086,2116.7,2115.6,7.25844125]
[1772057459161,0.002,2116.8,2115.8,6.07574569]
[1772057459363,0.002,2116.8,2116.0,6.07574569]
[1772057460135,0.002,2117.0,2116.5,6.07574569]
[1772057460272,0.002,2117.0,2116.6,6.07574569]
[1772057461813,0.002,2117.0,2116.3,1.08130699]
[1772057462106,1.18291639,2117.0,2116.3,1.08130699]
[1772057462606,0.002,2117.0,2116.3,1.08130699]
[1772057464490,0.002,2117.0,2116.1,4.72522799]
[1772057464491,6.1550371,2117.0,2116.0,1.18147448]
[1772057464892,6.1550371,2117.0,2116.0,7.25722017]
[1772057465122,6.1550371,2117.0,2115.8,27.18956084]
[1772057465293,6.1550371,2117.0,2115.6,0.001]
[1772057465294,6.1530371,2116.7,2115.6,1.18265601]
[1772057465619,0.002,2117.0,2115.9,6.07574569]
[1772057465823,6.1550371,2117.0,2115.9,6.07574569]
[1772057466529,1.18097217,2116.9,2116.0,1.18147448]
[1772057466693,1.18292251,2117.0,2116.1,6.07574569]
[1772057467908,1.18292251,2117.0,2116.2,0.001]
[1772057468114,0.002,2116.8,2116.2,0.001]
[1772057468725,0.002,2116.8,2116.2,1.18236282]
[1772057469422,6.1550371,2116.8,2116.2,0.001]
[1772057470123,6.1550371,2116.8,2116.0,0.001]
[1772057470619,6.1530371,2116.6,2116.0,0.001]
[1772057470820,6.1530371,2116.6,2115.7,0.001]
[1772057470821,6.1530371,2116.5,2115.7,0.001]
[1772057471227,6.1530371,2116.5,2115.4,0.001]
[1772057471402,6.1530371,2116.1,2115.4,0.001]
[1772057472745,1.18147448,2116.0,2115.4,0.001]
[1772057474817,6.1530371,2115.8,2115.4,0.001]
[1772057475209,6.1530371,2115.8,2114.8,4.72856935]
[1772057475210,6.1530371,2115.5,2114.6,1.18222163]
[1772057475523,6.1530371,2115.3,2114.6,1.18222163]
[1772057475698,6.1530371,2115.3,2114.6,1.18223052]
[1772057476104,6.1530371,2115.3,2114.7,1.18319715]
[1772057476410,6.1530371,2115.6,2114.7,1.18319715]
[1772057477005,6.1530371,2115.3,2114.7,0.001]
[1772057479444,4.72687767,2115.6,2114.7,0.001]
[1772057479445,7.33473906,2115.6,2114.7,0.001]
[1772057479822,9.28523207,2115.3,2114.7,0.001]
[1772057480960,6.1530371,2115.3,2114.7,0.001]
[1772057481522,4.31389693,2115.6,2114.7,0.001]
[1772057481523,1.18178441,2115.5,2114.7,0.001]
[1772057481768,1.18178441,2115.5,2114.5,0.001]
[1772057481769,6.1530371,2114.9,2114.5,0.001]
[1772057481931,6.1530371,2114.9,2114.2,0.001]
[1772057482321,6.1530371,2114.9,2114.1,1.18249646]
[1772057482322,3.13219497,2114.7,2113.8,7.25842536]
[1772057482547,9.28523207,2114.7,2113.8,7.25842536]
[1772057482750,6.26438994,2115.0,2113.7,0.001]
[1772057482751,3.13219497,2114.4,2113.7,0.001]
[1772057482957,6.1530371,2114.3,2113.7,0.001]
[1772057483251,6.1530371,2114.3,2113.2,10.8080084]
[1772057483252,7.6970371,2114.3,2113.2,10.8080084]
[1772057483454,7.33549218,2114.3,2113.3,1.18298395]
[1772057483640,7.33549218,2114.3,2113.4,4.73226271]
[1772057483641,3.13219497,2114.2,2113.4,4.73226271]
[1772057483951,9.28523207,2114.2,2113.4,4.73226271]
[1772057484322,6.1530371,2114.2,2113.4,4.73226271]
[1772057484519,6.1530371,2114.8,2113.5,6.07574569]
[1772057484825,10.46743285,2114.7,2113.6,4.73226271]
[1772057485028,6.1530371,2114.6,2113.6,4.73226271]
[1772057485260,1.18220078,2114.7,2113.7,6.07574569]
[1772057485465,4.72880313,2114.8,2113.8,1.18270413]
[1772057485662,10.88184023,2114.8,2113.8,5.91496684]
[1772057485866,5.92183066,2114.7,2113.8,4.73226271]
[1772057486395,5.92183066,2114.7,2113.7,7.25847969]
[1772057486567,5.92183066,2114.7,2113.8,4.73226271]
[1772057489011,1.18225669,2114.6,2113.7,7.25847969]
[1772057489297,1.18225669,2114.6,2113.4,4.73170301]
[1772057489298,5.92183066,2114.3,2113.8,4.73226271]
[1772057489589,5.92183066,2114.3,2113.5,4.73226271]
[1772057490069,5.92183066,2114.3,2113.4,1.18292705]
[1772057490264,5.92183066,2114.3,2113.4,4.73226271]
[1772057490470,5.92183066,2114.3,2113.4,5.9151784]
[1772057491681,1.18248037,2114.2,2113.2,1.18303993]
[1772057491883,1.18248037,2114.2,2113.2,12.26428293]
[1772057492284,7.6514081,2114.2,2113.2,12.26428293]
[1772057492485,6.46892773,2114.0,2113.2,4.73226271]
[1772057493207,1.18248037,2114.2,2113.2,11.081243]
[1772057493520,7.6514081,2114.2,2113.2,11.081243]
[1772057494187,11.19753657,2114.8,2113.5,6.34898029]
[1772057494525,1.18203309,2115.0,2113.6,6.34898029]
[1772057494817,7.8597981,2115.3,2113.6,6.34898029]
[1772057494818,1.18392255,2115.2,2114.2,6.34898029]
[1772057495411,3.13219497,2115.0,2114.3,4.73226271]
[1772057495602,7.65285028,2115.2,2114.2,4.73226271]
[1772057495802,6.46892773,2114.9,2114.2,4.73226271]
[1772057496298,0.002,2115.1,2114.3,1.18242444]
[1772057496546,1.18402214,2115.1,2114.2,11.081243]
[1772057496691,1.18402214,2115.1,2114.2,12.2637099]
[1772057497220,7.65294987,2115.1,2114.2,5.91474179]
[1772057498622,1.18397804,2115.1,2114.3,6.34898029]
[1772057499905,1.1839897,2115.1,2114.4,4.73226271]
[1772057500111,1.18398304,2115.1,2114.3,6.34898029]
[1772057500735,0.002,2115.1,2114.5,6.34898029]
[1772057501039,0.002,2115.1,2114.2,6.34898029]
[1772057501040,9.6031227,2115.1,2114.2,6.34898029]
[1772057501238,9.6031227,2115.1,2114.2,7.53145]
[1772057501732,6.47092773,2115.1,2114.2,7.53145]
[1772057502718,0.002,2115.1,2114.2,7.53145]
[1772057503641,6.47092773,2115.1,2114.2,1.18246971]
[1772057503942,6.46892773,2114.9,2114.0,1.18259224]
[1772057504116,6.46892773,2114.9,2113.9,11.07936472]
[1772057504117,6.46892773,2114.7,2113.6,6.34898029]
[1772057504947,1.18225669,2114.6,2113.7,7.53174037]
[1772057505845,7.65117035,2114.7,2113.7,1.18276008]
[1772057506050,7.65117035,2114.7,2113.7,7.53174037]
[1772057506444,7.65113513,2114.7,2113.7,7.53174037]
[1772057508038,0.002,2114.5,2113.7,7.53174037]
[1772057508918,0.002,2114.7,2114.2,6.34898029]
[1772057509624,0.002,2114.7,2114.3,1.18242444]
[1772057509921,0.002,2114.7,2114.2,6.34898029]
[1772057511854,0.002,2114.7,2114.3,7.53140473]
[1772057513040,0.002,2114.7,2114.2,1.18243876]
[1772057513965,0.002,2114.7,2114.1,1.1825198]
[1772057514166,0.002,2114.7,2113.1,4.994]
[1772057514167,6.46892773,2114.1,2113.4,0.001]
[1772057514457,6.46892773,2114.4,2113.4,7.53290689]
[1772057516459,7.11469473,2114.3,2113.4,6.34998029]
[1772057516665,5.93227029,2114.0,2113.4,0.001]
[1772057516881,7.11469473,2114.3,2113.4,0.001]
[1772057518660,5.93227029,2114.0,2113.1,0.001]
[1772057518974,1.18242444,2114.3,2113.1,0.001]
[1772057518975,5.93227029,2113.7,2113.1,0.001]
[1772057519166,2.23352074,2113.9,2113.1,0.001]
[1772057519371,5.93227029,2114.0,2113.1,0.001]
[1772057520183,5.93227029,2114.0,2113.1,6.32309786]
[1772057520755,7.11491847,2113.9,2113.1,0.001]
[1772057521287,7.11491847,2113.9,2113.3,0.001]
[1772057522687,1.18281604,2113.6,2113.3,0.001]
[1772057522985,25.3122897,2120.8,2113.3,0.001]
[1772057522986,1.18264818,2113.9,2113.3,0.001]
[1772057523378,1.18248037,2114.2,2113.3,6.32309786]
[1772057523704,1.18236852,2114.4,2113.5,6.32209786]
[1772057524676,1.18435806,2114.5,2113.7,30.0]
[1772057524874,1.18435806,2114.5,2113.8,7.50480199]
[1772057524875,0.002,2114.5,2113.8,7.50480199]
[1772057526885,0.002,2114.5,2113.8,6.32209786]
[1772057527589,0.002,2114.5,2113.8,7.50479624]
[1772057528292,0.002,2114.5,2113.7,4.73101847]
[1772057528293,0.002,2114.5,2113.4,6.32209786]
[1772057528490,9.06446526,2114.4,2113.5,7.50496987]
[1772057528863,1.18248037,2114.2,2113.4,7.50502297]
[1772057529613,0.002,2114.5,2113.6,6.32209786]
[1772057529902,1.18431524,2114.5,2113.6,6.32209786]
[1772057530912,0.002,2114.5,2113.8,6.32209786]
[1772057533297,0.002,2114.5,2113.9,1.18264818]
[1772057535019,0.002,2114.3,2113.9,1.18264818]
[1772057535215,0.002,2114.3,2113.7,1.18273494]
[1772057535516,0.002,2114.3,2113.7,6.32209786]
[1772057537000,10.66374437,2114.5,2114.0,6.32209786]
[1772057537001,0.002,2114.5,2114.0,6.32209786]
[1772057537595,0.002,2114.5,2114.1,7.50463416]
[1772057539609,0.002,2114.7,2114.3,6.32209786]
[1772057541638,0.002,2114.7,2114.5,6.32209786]
[1772057544120,0.002,2114.7,2114.5,7.50440193]
[1772057544741,0.002,2115.0,2114.5,7.50440193]
[1772057545828,0.002,2115.0,2114.6,6.35920007]
[1772057546827,0.002,2115.0,2114.7,1.18220078]
[1772057548121,5.94498501,2115.0,2114.2,9.42467511]
[1772057548347,5.94498501,2115.0,2114.3,0.001]
[1772057548549,5.94498501,2115.0,2114.1,4.72992148]
[1772057548550,5.94298501,2114.5,2113.5,6.36020007]
[1772057548846,5.94298501,2114.5,2114.0,0.001]
[1772057548847,1.18236852,2114.4,2114.0,0.001]
[1772057549168,7.12535353,2114.4,2114.0,0.001]
[1772057553334,6.35934956,2114.1,2113.8,0.001]
[1772057553537,6.35934956,2114.1,2113.5,1.18386695]
[1772057553733,1.18236852,2114.4,2113.5,7.12280141]
[1772057553734,7.54171808,2114.4,2113.5,7.12280141]
[1772057554734,6.35934956,2114.3,2113.5,1.18387085]
[1772057554938,6.35934956,2114.3,2113.5,7.12280531]
[1772057555644,1.18248037,2114.2,2113.5,5.93893446]
[1772057555953,7.54164924,2114.6,2113.7,5.93893446]
[1772057558160,7.54164924,2114.6,2113.8,7.12163859]
[1772057559042,1.18414771,2114.8,2113.9,5.93893446]
[1772057559559,7.54349727,2114.8,2113.9,5.93893446]
[1772057560257,7.54349521,2114.8,2114.0,7.1215267]
[1772057560768,0.002,2114.4,2114.0,7.1215267]
[1772057561261,0.002,2114.6,2114.1,5.93893446]
[1772057563765,0.002,2114.6,2114.1,7.1214668]
[1772057564137,0.002,2114.6,2114.1,5.93893446]
[1772057564364,0.002,2114.6,2114.1,7.121456]
[1772057564767,0.002,2115.1,2114.1,7.121456]
[1772057564768,0.002,2115.1,2114.5,5.93893446]
[1772057565061,0.002,2115.1,2114.7,5.93893446]
[1772057566867,0.002,2115.1,2114.9,5.93893446]
[1772057567069,6.35934956,2115.7,2114.8,1.18214488]
[1772057567070,6.35934956,2116.0,2115.1,5.93893446]
[1772057567243,7.54082569,2116.0,2115.1,5.93893446]
[1772057568265,6.35934956,2116.5,2115.1,5.93893446]
[1772057568571,6.35934956,2116.5,2115.0,2.23963706]
[1772057568572,7.54054492,2116.5,2115.4,5.93893446]
[1772057568876,7.54054492,2116.5,2115.5,1.18175372]
[1772057569549,6.35934956,2116.3,2115.5,1.18175372]
[1772057570258,6.35934956,2116.3,2115.5,1.18061035]
[1772057570769,6.35934956,2116.3,2115.5,7.11954481]
[1772057570972,7.54065713,2116.3,2115.5,7.11954481]
[1772057572378,7.54065713,2116.3,2115.2,5.93893446]
[1772057572586,6.35934956,2116.1,2115.3,1.18186545]
[1772057572765,6.35934956,2115.6,2114.7,7.12113524]
[1772057572971,6.35934956,2115.5,2114.7,1.18220078]
[1772057573281,6.35934956,2115.5,2114.6,1.893]
[1772057573488,6.35934956,2115.5,2114.6,3.07524629]
[1772057574287,6.35934956,2115.5,2115.3,0.001]
[1772057574657,6.35934956,2115.5,2114.6,3.07524629]
[1772057574970,6.35934956,2115.5,2115.0,0.001]
[1772057574971,6.35934956,2115.3,2115.0,0.001]
[1772057576970,6.35934956,2115.3,2114.6,9.37213717]
[1772057577284,7.5412314,2115.3,2114.6,9.37213717]
[1772057578286,7.5412314,2115.3,2114.6,1.8923]
[1772057578456,7.5412314,2115.3,2114.6,3.07455354]
[1772057578654,7.5412314,2115.3,2114.6,1.8923]
[1772057578857,7.5412314,2115.3,2114.6,3.07455356]
[1772057579059,7.5412314,2115.3,2114.6,1.8923]
[1772057579256,7.5412314,2115.3,2114.6,3.07454236]
[1772057579675,7.5412314,2115.3,2114.6,1.8923]
[1772057580158,4.72738268,2115.4,2114.7,6.29759088]
[1772057580159,1.18185006,2115.4,2114.7,6.29759088]
[1772057580463,7.48045137,2116.0,2114.7,6.29759088]
[1772057580663,0.002,2116.1,2115.2,6.29759088]
[1772057580892,0.002,2116.1,2115.4,6.29759088]
[1772057581071,0.002,2116.1,2115.5,1.18175372]
[1772057581268,0.002,2116.1,2115.6,6.29759088]
[1772057582511,5.93745137,2116.1,2115.4,1.891]
[1772057582710,5.93745137,2116.1,2115.4,9.37039279]
[1772057582916,0.002,2116.1,2115.5,6.29759088]
[1772057583415,0.002,2116.1,2115.5,7.47933812]
[1772057583580,0.002,2116.1,2115.5,6.29759088]
[1772057583777,0.002,2116.1,2115.5,7.47932405]
[1772057583979,5.93745137,2116.1,2115.4,1.891]
[1772057584317,5.93745137,2116.1,2115.5,6.29759088]
[1772057584318,0.002,2116.1,2115.5,6.29759088]
[1772057585804,5.93745137,2116.1,2115.4,1.891]
[1772057586008,5.93545137,2115.9,2115.4,1.891]
[1772057586791,5.93545137,2115.9,2115.2,1.18191221]
[1772057586992,0.002,2116.1,2114.8,11.0261704]
[1772057586993,5.93545137,2115.6,2114.8,7.47970081]
[1772057587193,5.93545137,2115.6,2115.0,0.001]
[1772057587803,1.18175372,2115.5,2115.0,0.001]
[1772057588995,1.18356298,2115.9,2115.1,6.29759088]
[1772057589612,7.11901435,2115.9,2115.1,6.29759088]
[1772057590207,7.11901435,2115.9,2115.2,1.18192133]
[1772057590400,5.93745137,2115.9,2115.2,7.47951221]
[1772057590581,1.18353391,2115.9,2115.2,7.47951221]
[1772057591018,0.002,2115.9,2115.2,7.47951221]
[1772057591310,1.18353652,2115.9,2115.2,7.47951221]
[1772057591501,0.002,2115.9,2115.2,7.47951221]
[1772057594013,0.002,2115.9,2115.4,6.29759088]
[1772057594598,0.002,2115.9,2115.6,6.29759088]
[1772057594911,0.002,2116.1,2115.6,6.29759088]
[1772057595119,0.002,2116.3,2115.7,6.29759088]
[1772057596097,5.93745137,2116.3,2115.5,7.4793446]
[1772057596294,5.93545137,2116.2,2115.3,1.895]
[1772057596495,5.93545137,2116.2,2115.3,9.37445516]
[1772057596720,7.11684754,2116.2,2115.4,6.29759088]
[1772057597400,7.11684754,2116.2,2115.3,3.07683135]
[1772057597900,7.11684754,2116.2,2115.3,9.37442223]
[1772057599307,7.11684754,2116.2,2115.3,9.37445407]
[1772057599819,5.93745137,2116.0,2115.3,1.895]
[1772057600019,5.93745137,2116.0,2115.3,3.07686356]
[1772057600196,5.93745137,2116.0,2115.3,1.895]
[1772057601538,1.18153031,2115.9,2115.3,3.07686016]
[1772057603333,1.18153031,2115.9,2115.3,8.19259088]
[1772057603742,1.18153031,2115.9,2115.3,9.37445223]
[1772057604834,1.18153031,2115.9,2115.3,8.19259088]
[1772057605134,7.11698168,2115.9,2115.3,1.895]
[1772057605532,7.11698168,2115.9,2115.1,7.47952265]
[1772057605737,1.18169786,2115.6,2115.0,7.60859368]
[1772057606060,1.18169786,2115.6,2114.6,1.897]
[1772057606061,6.00755758,2115.5,2114.3,8.92200051]
[1772057606236,6.00755758,2115.5,2114.5,7.60886562]
[1772057606758,6.00755758,2115.2,2114.5,0.001]
[1772057607836,6.00755758,2115.0,2114.5,0.001]
[1772057610285,1.18208898,2114.9,2114.5,0.001]
[1772057612162,6.10868305,2115.2,2114.6,6.35977881]
[1772057612364,6.10868305,2115.2,2114.5,1.18328395]
[1772057612365,6.10868305,2115.2,2114.7,0.001]
[1772057615484,1.18197721,2115.1,2114.7,0.001]
[1772057617687,6.10868305,2115.0,2114.7,0.001]
[1772057617990,6.10868305,2115.4,2114.7,0.001]
[1772057619793,6.10868305,2115.2,2114.7,0.001]
[1772057620694,4.72746182,2115.4,2114.7,6.36077881]
[1772057620695,7.2905361,2115.4,2114.7,6.36077881]
[1772057622386,7.2905361,2115.4,2114.8,1.18214488]
[1772057622589,7.2905361,2115.4,2114.8,7.54192369]
[1772057622977,1.18185305,2115.4,2114.8,7.54192369]
[1772057623386,7.65768305,2115.6,2114.8,7.54192369]
[1772057623387,7.29041894,2115.6,2114.8,7.54192369]
[1772057623882,10.83520617,2115.8,2114.8,7.54192369]
[1772057624181,7.29026921,2115.8,2114.8,7.54292369]
[1772057624572,0.002,2115.2,2114.8,7.54292369]
[1772057624774,7.29026921,2115.8,2114.9,6.35977881]
[1772057625209,7.29026921,2115.8,2114.8,0.001]
[1772057625397,6.10868305,2115.7,2114.8,7.54291329]
[1772057625718,7.29026921,2115.8,2114.8,7.54291329]
[1772057626490,0.002,2115.4,2114.8,7.54291329]
[1772057626678,0.002,2115.4,2114.9,6.35977881]
[1772057626878,1.18155924,2115.9,2114.9,8.25177881]
[1772057627064,0.002,2115.7,2115.2,6.35977881]
[1772057628769,0.002,2115.7,2115.3,7.54164426]
[1772057629189,0.002,2115.7,2115.3,6.35977881]
[1772057631298,6.10868305,2115.6,2114.8,0.001]
[1772057633697,6.10868305,2115.4,2114.8,0.001]
[1772057634575,6.10868305,2115.4,2114.8,6.36077881]
[1772057636075,1.18186545,2115.3,2114.8,6.36077881]
[1772057638677,7.09680129,2115.3,2114.8,6.36077881]
[1772057638989,1.18184284,2115.4,2114.9,6.13081519]
[1772057640188,1.18184284,2115.4,2115.0,0.001]
[1772057640488,1.18380003,2115.5,2115.0,6.13181519]
[1772057640692,0.002,2115.5,2115.0,7.31384629]
[1772057640988,0.002,2115.7,2115.1,6.13081519]
[1772057641404,1.18365922,2115.7,2115.1,6.13081519]
[1772057641709,5.91493584,2115.6,2115.0,0.001]
[1772057642181,5.91493584,2115.6,2115.0,7.31383096]
[1772057642508,5.91493584,2115.3,2114.8,0.001]
[1772057642680,1.18365922,2115.7,2114.8,0.001]
[1772057642681,5.91493584,2115.0,2114.8,0.001]
[1772057642879,6.26256796,2115.6,2114.8,0.001]
[1772057642880,5.91493584,2115.2,2114.8,0.001]
[1772057643541,5.91493584,2115.4,2114.8,0.001]
[1772057643823,5.91493584,2115.6,2114.8,6.13181519]
[1772057644393,1.18365922,2115.7,2114.8,6.13181519]
[1772057644722,0.002,2115.7,2115.0,6.13081519]
[1772057645126,0.002,2115.7,2115.1,6.13081519]
[1772057646130,1.18348843,2116.0,2115.2,6.13081519]
[1772057646898,1.18348843,2116.0,2115.2,7.31268499]
[1772057647919,0.002,2116.0,2115.2,7.31268499]
[1772057650195,0.002,2116.0,2115.4,6.13081519]
[1772057652040,0.002,2116.0,2115.6,6.13081519]
[1772057652835,5.91693584,2116.0,2115.2,7.31269823]
[1772057653014,3.13128398,2115.6,2114.8,0.001]
[1772057653215,3.13128398,2115.6,2114.3,0.001]
[1772057653216,5.91493584,2115.2,2114.3,0.001]
[1772057653735,5.91493584,2115.0,2114.3,0.001]
[1772057654040,7.09713662,2114.7,2114.3,0.001]
[1772057656254,7.09713662,2114.7,2113.9,0.001]
[1772057656255,5.91493584,2114.5,2113.9,0.001]
[1772057656417,5.91493584,2114.1,2113.6,0.001]
[1772057658229,1.18259224,2114.0,2113.6,0.001]
[1772057658430,1.18259224,2114.0,2113.4,0.001]
[1772057658933,1.18257818,2114.1,2113.4,0.001]
[1772057659138,7.09751402,2114.1,2113.4,0.001]
[1772057665962,7.09751402,2114.1,2113.4,5.96395382]
[1772057666168,7.09751402,2114.1,2113.4,0.001]
[1772057666340,7.09751402,2114.1,2113.6,0.001]
[1772057666660,0.002,2113.9,2113.6,5.96395382]
[1772057666865,0.002,2113.9,2113.6,0.001]
[1772057667062,0.002,2113.9,2113.6,5.96395382]
[1772057669742,0.002,2113.9,2113.6,7.14672595]